Cogmind - Beta 10.2 @@@ ROGUE MODE // 2020.11.02 @ 06:47:56 // Halloween2020/ForbiddenLore Player: Stryker Result: Self-destructed Performance ------------- Evolutions (6) 3000 Regions Visited (23) 4600 Robots Destroyed (241) 1205 Value Destroyed (10050) 10050 Prototype IDs (32) 640 Alien Tech Used (0) 0 Bonus (2390) 2390 TOTAL SCORE: 21885 Bonus ------- High Alert Combat Kills 436 Follower Combat Kills 1299 Network Hubs Disabled 200 Met Data Miner 300 Met Imprinter 300 Friendly Fire -145 Cogmind --------- Core Integrity 972/1150 Matter 229/300 Energy 350/350 System Corruption 9% Temperature Cool (147) Movement Immobile (Siege) Ox1 Location -4/Factory Parts ------- > --- POWER (1) -------- Quantum Reactor > --- PROPULSION (4) --- Centrium Heavy Treads Armored Huge Wheel > --- UTILITY (11) ----- Coolant Injector High-capacity Storage Unit High-capacity Storage Unit High-capacity Storage Unit Precision Matter Filter Improved Weapon Cycler Improved Hacking Suite Advanced Hacking Suite Advanced System Shield > --- WEAPON (3) ------- KE Penetrator Improved KE Penetrator Improved KE Penetrator > --- INVENTORY (28) --- Light Antimatter Reactor Improved Treads Medium Treads Improved Medium Treads Improved Medium Treads Improved Medium Treads Improved Medium Treads Armored Huge Wheel High-capacity Storage Unit Advanced Energy Well (800) Matter Compressor (250) Long-range Sensor Array Makeshift Sensor Array Advanced Signal Interpreter Advanced Terrain Scanner Advanced Focal Shield Advanced Focal Shield Phasing AFG Advanced Plasma Cannon Coil Gun Heavy Machine Gun Improved KE Penetrator Improved KE Penetrator CR-A16's Behemoth Slayer Peak State ------------ > --- POWER ------------ Quantum Reactor > --- PROPULSION ------- Centrium Heavy Treads Armored Huge Wheel > --- UTILITY ---------- Coolant Injector High-capacity Storage Unit High-capacity Storage Unit High-capacity Storage Unit Advanced Signal Interpreter Improved Weapon Cycler Medium Regenerative Plating Advanced Focal Shield Improved Hacking Suite Advanced Hacking Suite Advanced System Shield > --- WEAPON ----------- Coil Gun Improved KE Penetrator CR-A16's Behemoth Slayer > --- INVENTORY -------- Micro Fission Core Improved Treads Medium Treads Improved Medium Treads Improved Medium Treads Improved Medium Treads Improved Medium Treads Armored Huge Wheel High-capacity Storage Unit Advanced Energy Well Matter Compressor Long-range Sensor Array Makeshift Sensor Array Advanced Signal Interpreter Advanced Terrain Scanner Precision Matter Filter Improved Medium Armor Plating Advanced Focal Shield Phasing AFG High-powered Shock Rifle Advanced Plasma Cannon Coil Gun Heavy Machine Gun KE Penetrator Improved KE Penetrator Improved KE Penetrator Improved KE Penetrator [Rating: 119] Favorites ----------- Power Cooled Deuterium Engine Engine Cooled Deuterium Engine Power Core Fission Core Reactor Particle Reactor Propulsion Light Treads Treads Light Treads Leg Improved Aluminum Leg Wheel Armored Huge Wheel Utility Large Storage Unit Device Makeshift Sensor Array Storage Large Storage Unit Processor Advanced Signal Interpreter Hackware Improved System Shield Protection Layered Medium Armor Plating Weapon Gauss Rifle Energy Gun Improved Medium Laser Energy Cannon Improved EM Pulse Cannon Ballistic Gun Gauss Rifle Ballistic Cannon Mini Assault Cannon Launcher Heavy Rocket Launcher Impact Weapon Hammer Slashing Weapon Great Axe Piercing Weapon CR-A16's Pointy Stick Build | -11 -10 -10 -9 -9 -9 -8 -8 -7 -7 -7 -7 -6 -6 -6 -6 -6 -5 -5 -5 -5 -5 -5 -4 ------- Run | Scr Mat Min Mat Min Exi Min Mat Fac Low Low Zio Pro Fac Low Low Dat Pro Fac Ext Cet Arc Hub Fac Slots Evolved 12 | . . . 2 . . . 2 2 . . . . 2 . . . . 2 . . . . 2 Power . | . . . . . . . . . . . . . . . . . . . . . . . . Propulsion 2 | . . . . . . . 1 1 . . . . . . . . . . . . . . . Utility 9 | . . . 2 . . . 1 1 . . . . 1 . . . . 2 . . . . 2 Weapon 1 | . . . . . . . . . . . . . 1 . . . . . . . . . . Parts Attached 429 | 1 10 7 7 3 1 11 21 45 10 4 4 6 95 12 2 4 20 29 49 3 3 10 72 Power 13 | . 2 . 2 . . . 1 1 . . . . 2 . . . . . 1 . 1 2 1 Engine 9 | . 2 . 2 . . . 1 1 . . . . 1 . . . . . 1 . . 1 . Core 1 | . . . . . . . . . . . . . 1 . . . . . . . . . . Reactor 3 | . . . . . . . . . . . . . . . . . . . . . 1 1 1 Propulsion 59 | . 4 3 1 2 . 3 7 13 . . . . 11 . . . . 1 10 1 . . 3 Treads 36 | . . 2 . . . 1 4 8 . . . . 10 . . . . 1 8 1 . . 1 Leg 8 | . 4 1 . 1 . 1 1 . . . . . . . . . . . . . . . . Wheel 15 | . . . 1 1 . 1 2 5 . . . . 1 . . . . . 2 . . . 2 Hover . | . . . . . . . . . . . . . . . . . . . . . . . . Flight . | . . . . . . . . . . . . . . . . . . . . . . . . Utility 214 | 1 2 . 2 . 1 . 5 13 7 3 2 4 50 8 2 1 13 18 23 1 2 8 48 Device 137 | . . . . . . . . 8 4 2 2 3 28 7 2 1 13 14 15 1 2 5 30 Storage 20 | 1 2 . 1 . 1 . 2 1 2 1 . . 4 . . . . . 1 . . . 4 Processor 3 | . . . 1 . . . . 1 . . . . . . . . . . . . . . 1 Hackware 6 | . . . . . . . . . . . . . . . . . . 2 2 . . . 2 Protection 48 | . . . . . . . 3 3 1 . . 1 18 1 . . . 2 5 . . 3 11 Artifact . | . . . . . . . . . . . . . . . . . . . . . . . . Weapon 143 | . 2 4 2 1 . 8 8 18 3 1 2 2 32 4 . 3 7 10 15 1 . . 20 Energy Gun 25 | . 1 1 1 1 . 2 3 7 . . . . 3 1 . . 1 1 . . . . 3 Energy Cannon 7 | . . . . . . 1 . 3 . . 1 . . . . . . 1 1 . . . . Ballistic Gun 65 | . 1 1 1 . . 2 4 6 1 . . 1 17 2 . 3 . 3 9 1 . . 13 Ballistic Cannon 3 | . . . . . . . 1 1 . . . . . . . . . . 1 . . . . Launcher 17 | . . 2 . . . 2 . 1 2 . . 1 2 . . . 3 2 2 . . . . Special Weapon . | . . . . . . . . . . . . . . . . . . . . . . . . Impact Weapon 1 | . . . . . . 1 . . . . . . . . . . . . . . . . . Slashing Weapon 1 | . . . . . . . . . . 1 . . . . . . . . . . . . . Piercing Weapon 24 | . . . . . . . . . . . 1 . 10 1 . . 3 3 2 . . . 4 Special Melee Weapon . | . . . . . . . . . . . . . . . . . . . . . . . . Unidentified Prototypes 13 | . . . . . . . . 5 . . 1 . . . . . . 1 3 1 . 1 1 Parts Lost 66 | . 2 3 2 1 . 3 7 10 . . . . 10 . . . 1 2 13 . . 2 10 Power 3 | . 1 . . . . . . . . . . . 1 . . . . . . . . . 1 Propulsion 23 | . . 2 . . . 1 5 8 . . . . 2 . . . . 1 4 . . . . Utility 19 | . . . . . . . . 2 . . . . 4 . . . . . 5 . . 2 6 Weapon 21 | . 1 1 2 1 . 2 2 . . . . . 3 . . . 1 1 4 . . . 3 Highest Loss Streak 12 | . 2 2 1 1 . 1 3 3 . . . . 6 . . . 1 2 12 . . 1 5 Average Slot Usage (%) 89 | . 100 98 98 100 88 87 89 88 84 84 83 84 87 93 92 76 93 93 92 90 88 88 88 Engine 6 | . 14 14 11 11 11 11 9 7 7 7 7 7 1 6 6 6 6 5 5 5 1 . . Treads 11 | . . 1 11 11 11 19 12 18 15 15 15 15 13 13 13 13 13 11 10 7 5 5 4 Leg 1 | . 28 26 . . . . 1 . . . . . . . . . . . . . . . . Wheel 6 | . . . 11 10 11 1 13 11 7 7 7 7 6 6 6 6 6 5 5 5 5 5 4 Device 6 | . . . . . . . . 8 6 7 7 6 7 13 12 13 13 10 8 5 5 5 12 Storage 23 | . 28 28 32 33 32 33 27 23 23 23 23 23 20 20 20 20 20 17 17 17 17 17 15 Processor 4 | . . . 10 11 . . . . 7 7 7 7 6 6 6 6 6 5 5 5 5 5 4 Hackware 2 | . . . . . . . . . . . . . . . . . . 10 12 17 17 14 16 Protection 3 | . . . . . . . 8 3 . . . . 6 6 6 6 6 5 5 5 4 6 6 Energy Gun 4 | . 14 4 11 11 11 10 4 1 . . . . 2 . . . 1 4 3 . . . 3 Energy Cannon 1 | . . . . . . 6 . 1 7 7 6 7 . . . . . . 1 . . . . Ballistic Gun 10 | . 14 13 11 11 11 1 12 10 6 6 . 2 14 18 20 3 10 5 10 16 17 17 10 Piercing Weapon 1 | . . . . . . . . . . . 6 . 2 . . . 2 2 . . . . 1 Naked Turns . | . . . . . . . . . . . . . . . . . . . . . . . . Heaviest Build 176 | 17 39 40 59 59 123 127 133 150 166 136 136 142 176 141 139 136 138 143 149 139 139 153 159 Greatest Support 83 | 20 26 26 16 20 16 40 32 83 28 28 28 28 50 28 28 28 28 28 28 60 28 80 80 Greatest Overweight (x) 9 | . 1 1 3 3 7 7 7 9 5 4 4 5 6 5 4 4 4 5 6 4 4 5 5 Average Overweight (x) 4 | . . 1 2 2 6 3 5 3 4 4 4 4 4 4 4 4 4 4 4 3 4 4 3 Largest Inventory Capacity 44 | 8 16 16 22 22 36 36 44 36 44 36 36 36 42 28 28 28 28 28 28 28 28 28 28 Average Capacity 31 | 7 12 16 21 22 35 36 36 36 36 36 36 36 35 28 28 28 28 28 28 28 28 28 28 Most Carried 38 | 8 14 16 22 22 30 36 36 36 36 36 36 36 38 28 28 28 28 28 28 28 28 28 28 Average Carried 30 | 7 9 15 20 21 28 35 34 35 35 35 36 36 34 27 27 28 27 27 27 27 28 27 27 Final Capacity 36 | 8 16 16 22 22 36 36 36 36 36 36 36 36 28 28 28 28 28 28 28 28 28 28 28 Final Carried 36 | 8 14 14 22 22 30 34 36 36 36 36 36 36 26 28 28 28 28 28 28 28 28 28 25 Class Distribution -------------------- 62% | Hauler-Mutant 11% | Hauler-Skirmisher 5% | Mutant 4% | Hacker-Skirmisher 4% | Hauler-Tank Dominant Class ---------------- Mutant | -10/Materials Mutant | -10/Mines Hauler-Mutant | -9/Materials Hauler-Mutant | -9/Mines Hauler-Mutant | -9/Exiles Hauler-Mutant | -8/Mines Hauler-Mutant | -8/Materials Hauler-Mutant | -7/Factory Hauler-Mutant | -7/Lower Caves Hauler-Mutant | -7/Lower Caves Hauler-Mutant | -7/Zion Hauler-Mutant | -6/Proximity Caves Hauler-Mutant | -6/Factory Hauler-Skirmisher | -6/Lower Caves Hauler-Skirmisher | -6/Lower Caves Hauler-Mutant | -6/Data Miner Hauler-Mutant | -5/Proximity Caves Hauler-Assassin | -5/Factory Hauler-Mutant | -5/Extension Hacker-Tank | -5/Cetus Hacker-Tank | -5/Archives Hacker-Skirmisher | -5/Hub_04(d) Hacker-Skirmisher | -4/Factory Resources | -11 -10 -10 -9 -9 -9 -8 -8 -7 -7 -7 -7 -6 -6 -6 -6 -6 -5 -5 -5 -5 -5 -5 -4 ----------- Run | Scr Mat Min Mat Min Exi Min Mat Fac Low Low Zio Pro Fac Low Low Dat Pro Fac Ext Cet Arc Hub Fac Matter Collected 9898 | 216 373 132 155 30 . 88 664 1180 253 64 27 142 2293 350 64 . 440 594 832 88 83 390 1440 Remotely . | . . . . . . . . . . . . . . . . . . . . . . . . Salvage Created 11268 | 90 454 132 262 88 . 378 1236 1574 159 . . 100 2104 217 . . 378 369 1028 23 70 583 2023 Parts 582 | 5 24 12 18 7 . 20 64 85 2 . . 5 103 6 . . 25 16 62 . 3 31 94 Haulers Intercepted 5 | . . . . . . . 2 3 . . . . . . . . . . . . . . . Recyclers Shooed 8 | . . . . . . . 1 1 . . . . 2 . . . . . 4 . . . . Parts Field Recycled . | . . . . . . . . . . . . . . . . . . . . . . . . Retrieved Matter . | . . . . . . . . . . . . . . . . . . . . . . . . Parts Self-Destructed 25 | . . . . . . . . . 2 . . 2 . 5 . . 16 . . . . . . Prevented 5 | . . . . . . . . . . 2 . 3 . . . . . . . . . . . Kills | -11 -10 -10 -9 -9 -9 -8 -8 -7 -7 -7 -7 -6 -6 -6 -6 -6 -5 -5 -5 -5 -5 -5 -4 ------- Run | Scr Mat Min Mat Min Exi Min Mat Fac Low Low Zio Pro Fac Low Low Dat Pro Fac Ext Cet Arc Hub Fac Combat Hostiles Destroyed 201 | . 8 7 9 2 . 10 20 27 3 . . 4 35 4 . . 17 7 10 1 . 9 28 Guns 153 | . 8 6 9 2 . 3 19 18 2 . . 1 32 4 . . . 7 5 1 . 9 27 Cannons 9 | . . . . . . 2 1 4 . . . . . . . . . . 2 . . . . AOE 32 | . . 1 . . . 5 . 4 1 . . 3 2 . . . 16 . . . . . . Classes Destroyed 15 | 2 2 1 1 1 . 1 2 2 . . . . 2 . . . . . 1 . . . . Worker 8 | . . . . . . . . 2 . . . . 3 . . . . . 1 . . 1 1 Builder 5 | . . . . . . . . . . . . . 1 . . . . . 2 . . 1 1 Tunneler 2 | 1 . . . . . . . . . . . . . . . . . . 1 . . . . Hauler 5 | . . . . . . . 2 3 . . . . . . . . . . . . . . . Recycler 12 | 1 1 . . . . . 3 3 . . . . 1 . . . . 1 2 . . . . Operator 1 | . . . . . . . . . . . . . . . . . . . 1 . . . . Watcher 6 | . 1 . 1 . . . . . . . . . 2 . . . . . . . . . 2 Swarmer 54 | . . 5 6 . . 3 3 4 . . . 3 6 . . . 15 5 . . . . 4 Grunt 65 | . 8 2 1 1 . 6 8 10 3 . . . 13 4 . . . . 3 . . 2 4 Brawler 2 | . . . . . . 1 . . . . . . 1 . . . . . . . . . . Duelist 3 | . . . . 1 . . . . . . . . 1 . . . . . . . . . 1 Sentry 32 | . . . 2 . . . 8 4 . . . . 5 . . . . . 3 . . 3 7 Hunter 20 | . . . . . . . 1 4 . . . 1 1 . . . 1 . 2 . . 2 8 Programmer 20 | . . . . . . . . 5 . . . . 7 . . . . 2 . . . 2 4 Behemoth 4 | . . . . . . . . . . . . . 1 . . . 1 . 2 . . . . Cetus Guard 1 | . . . . . . . . . . . . . . . . . . . . 1 . . . Guerrilla 1 | . . . . . . . . . . . . . . . . . . . . . 1 . . Best Kill Streak 8 | 2 2 3 3 2 . 3 5 8 3 . . 3 8 2 . . 5 4 5 1 . 5 6 Combat Bots Only 6 | . 2 3 3 2 . 3 3 6 3 . . 3 5 2 . . 5 4 2 1 . 5 5 Max Kills in Single Turn 5 | 1 1 2 1 1 . 3 2 3 1 . . 2 4 1 . . 5 2 2 1 1 2 2 Gunslinging 1 | . . 1 . . . . 1 . . . . . . . . . . 1 . . . . . Exploded 5 | . . 1 . . . 3 . 2 1 . . 2 2 . . . 5 . . . . . . Melee . | . . . . . . . . . . . . . . . . . . . . . . . . Uniques/NPCs Destroyed . | . . . . . . . . . . . . . . . . . . . . . . . . Combat | -11 -10 -10 -9 -9 -9 -8 -8 -7 -7 -7 -7 -6 -6 -6 -6 -6 -5 -5 -5 -5 -5 -5 -4 -------- Run | Scr Mat Min Mat Min Exi Min Mat Fac Low Low Zio Pro Fac Low Low Dat Pro Fac Ext Cet Arc Hub Fac Damage Taken 19634 | . 521 382 292 91 . 577 1492 2652 197 14 . 246 4006 395 . . 404 499 2718 33 48 1450 3617 Core 1790 | . 90 118 68 . . 106 135 289 . . . 9 261 60 . . 20 50 263 18 . 125 178 Absorbed by Shields 1014 | . . . . . . . . 129 75 . . 24 225 . . . 41 64 167 . . 289 . Reduced by Siege Mode 165 | . . . . . . . . . . . . . . . . . . . . . . . 165 Core Remaining (%) 59 | 100 . 16 . . . 56 75 . . . . 57 . . . . 59 . . . . 54 . Volleys Fired 636 | 2 41 18 24 5 . 31 85 97 14 . . 7 98 18 . . 11 22 46 3 3 22 89 Largest 3 | 2 2 2 2 2 . 2 2 2 2 . . 2 3 3 . . 1 3 3 3 3 3 3 Hottest 161 | 70 70 70 76 76 . 132 86 97 105 . . 97 118 90 . . 39 135 161 96 96 96 133 Shots Fired 1442 | 4 82 31 48 10 . 54 170 187 17 2 . 12 284 51 1 . 13 54 79 8 10 64 261 Gun 1332 | 4 82 29 48 10 . 36 155 165 12 . . 5 283 51 1 . 2 50 56 8 10 64 261 Cannon 72 | . . . . . . 10 15 18 4 2 . 5 . . . . . 3 15 . . . . Launcher 38 | . . 2 . . . 8 . 4 1 . . 2 1 . . . 11 1 8 . . . . Special . | . . . . . . . . . . . . . . . . . . . . . . . . Kinetic 1024 | 2 41 16 24 5 . 12 115 151 12 . . 5 231 51 1 . 2 36 38 8 10 64 200 Thermal 204 | 2 41 13 24 5 . 24 12 5 . . . . 28 . . . . 17 33 . . . . Explosive 30 | . . 2 . . . 8 . 4 1 . . 2 1 . . . 11 1 . . . . . Electromagnetic 184 | . . . . . . 10 43 27 4 2 . 5 24 . . . . . 8 . . . 61 Robot Hit Streak 20 | 2 10 12 15 20 . 9 19 14 9 . . 14 10 13 3 . 4 9 11 5 3 7 18 Robot Miss Streak 7 | 1 3 2 1 1 . 3 5 2 1 . . 1 5 2 . . 2 7 4 1 2 3 2 Penetration Max 1 | . . . . . . . . 1 . . . . 1 1 . . . 1 1 . . 1 1 Secondary Targets 15 | . . 2 . . . 1 2 . . . . . 1 1 . . . 2 . . . . 6 Max Gunslinging Chain 1 | . . 1 . . . 1 1 . . . . . 1 1 . . . 1 . . . . 1 Shots Hit Robots 1019 | 2 55 21 36 7 . 38 118 147 14 . . 9 194 36 1 . 4 33 50 6 5 40 203 Core Hits 475 | 3 22 9 12 4 . 26 48 66 6 . . 6 81 9 . . 26 10 33 3 1 26 84 Critical Hits 31 | . . . . . . . . 6 . . . . 6 . . . . 1 2 1 . 4 11 Critical Kills 13 | . . . . . . . . 1 . . . . 4 . . . . . 2 . . 2 4 Critical Parts Destroyed 16 | . . . . . . . . 5 . . . . 1 . . . . 1 . 1 . 2 6 Melee Attacks 91 | . . . . . . 2 . . . 1 . . 40 5 . . 4 23 3 . . . 13 Impact 2 | . . . . . . 2 . . . . . . . . . . . . . . . . . Slashing 1 | . . . . . . . . . . 1 . . . . . . . . . . . . . Piercing 88 | . . . . . . . . . . . . . 40 5 . . 4 23 3 . . . 13 Sneak Attacks 2 | . . . . . . . . . . . . . . . . . . 2 . . . . . Combat Hostiles . | . . . . . . . . . . . . . . . . . . . . . . . . Follow-up Attacks . | . . . . . . . . . . . . . . . . . . . . . . . . Damage Inflicted 26120 | 37 645 337 516 89 . 1028 1874 3624 417 . . 484 5114 925 24 . 1324 1067 1848 165 113 1222 5267 Guns 20277 | 37 645 228 516 89 . 451 1641 2787 219 . . 78 4496 925 24 . . 695 860 165 113 1149 5159 Cannons 1252 | . . . . . . 97 233 383 56 . . 87 . . . . . . 396 . . . . Explosions 3665 | . . 109 . . . 357 . 453 142 . . 319 446 . . . 1162 . 581 . . 2 94 Melee 829 | . . . . . . 123 . . . . . . 172 . . . 162 372 . . . . . Ramming 97 | . . . . . . . . 1 . . . . . . . . . . 11 . . 71 14 Kinetic 15987 | 12 282 99 192 21 . 117 1232 2631 219 . . 78 3661 925 24 . . 533 578 165 113 1149 3956 Thermal 3241 | 25 363 129 324 68 . 334 171 105 . . . . 788 . . . . 162 678 . . . 94 Explosive 2632 | . . 109 . . . 357 . 395 142 . . 319 148 . . . 1162 . . . . . . Electromagnetic 3334 | . . . . . . 97 471 492 56 . . 87 345 . . . . . 581 . . 2 1203 Impact 123 | . . . . . . 123 . . . . . . . . . . . . . . . . . Slashing . | . . . . . . . . . . . . . . . . . . . . . . . . Piercing 706 | . . . . . . . . . . . . . 172 . . . 162 372 . . . . . Highest Corruption 31 | . . . . . . . . 7 7 7 7 . 6 6 6 6 6 6 14 14 14 31 9 Average Corruption 6 | . . . . . . . . 5 7 7 7 . 3 6 6 6 6 5 7 14 14 15 8 Corruption Purged . | . . . . . . . . . . . . . . . . . . . . . . . . Effects 385 | . . . . . . . . 55 20 18 1 . 21 29 16 3 32 19 55 9 6 23 78 Message Errors 86 | . . . . . . . . 15 4 3 1 . 7 8 5 1 9 4 8 . 2 4 15 Matter Fused 74 | . . . . . . . . 11 6 5 . . . 4 3 . 8 1 13 3 2 7 11 Heat Flow Errors 36 | . . . . . . . . 6 3 . . . 2 3 1 . 2 4 5 . 1 2 7 Energy Discharges 46 | . . . . . . . . 4 3 2 . . 6 4 2 . 6 3 4 2 . 1 9 Parts Rejected 5 | . . . . . . . . 1 . . . . . . . . . . 3 . . . 1 Data Loss (minor) 45 | . . . . . . . . 9 3 5 . . 4 3 2 1 4 2 5 1 . 1 5 Data Loss (major) 11 | . . . . . . . . 3 . . . . . 1 2 1 . 1 1 . . 1 1 Misfires 10 | . . . . . . . . 1 . 2 . . 1 . 1 . 2 1 1 . 1 . . Alerts 1 | . . . . . . . . . . . . . . . . . . . 1 . . . . Misdirections 6 | . . . . . . . . . . . . . . . . . . . 3 2 . 1 . Targeting Errors 53 | . . . . . . . . 4 . 1 . . 1 3 . . 1 2 8 . . 6 27 Weapon Failures 12 | . . . . . . . . 1 1 . . . . 3 . . . 1 3 1 . . 2 Overload Shots . | . . . . . . . . . . . . . . . . . . . . . . . . Overflow Damage 324 | . . . . . . 59 7 . . . . 65 55 . . . 54 58 1 . . . 25 Projectiles 7 | . . . . . . . 7 . . . . . . . . . . . . . . . . Explosions 157 | . . . . . . . . . . . . 65 55 . . . 11 . 1 . . . 25 Melee 160 | . . . . . . 59 . . . . . . . . . . 43 58 . . . . . Knockbacks 8 | . . . . . . 1 3 4 . . . . . . . . . . . . . . . Impact 1 | . . . . . . 1 . . . . . . . . . . . . . . . . . Kinetic 7 | . . . . . . . 3 4 . . . . . . . . . . . . . . . Secondary . | . . . . . . . . . . . . . . . . . . . . . . . . Self-Inflicted Damage 277 | . . 23 . . . 13 . . . . . . 66 . . . . . 5 . . 102 68 Shots 5 | . . 1 . . . 1 . . . . . . 1 . . . . . . . . 1 1 Rammed 10 | . . . . . . . . 2 . . . . . . . . . . 1 . . 6 1 Targets Rammed 10 | . . . . . . . . 2 . . . . . . . . . . 1 . . 6 1 Kicked . | . . . . . . . . . . . . . . . . . . . . . . . . Crushed . | . . . . . . . . . . . . . . . . . . . . . . . . Highest Temperature 393 | 9 135 54 90 52 . 333 275 366 83 6 . 90 393 247 230 . 149 286 344 21 72 140 352 Average Temperature 88 | 6 41 23 24 24 . 111 74 118 30 4 . 46 102 84 109 . 33 123 97 14 23 39 115 Received Heat Transfer 3934 | . 264 66 48 . . 297 585 651 96 . . . 643 213 . . 27 . 414 9 9 96 516 Effects 13 | . . . . . . 1 . 3 . . . . 3 1 . . . 1 . . . . 4 Shutdowns 1 | . . . . . . . . . . . . . . . . . . . . . . . 1 Energy Bleed 4 | . . . . . . 1 . 2 . . . . . . . . . 1 . . . . . Interference 7 | . . . . . . . . . . . . . 3 1 . . . . . . . . 3 Matter Decay 1 | . . . . . . . . 1 . . . . . . . . . . . . . . . Siege Activations 10 | . . . . . . . . . . . . . . . . . . . . . . 1 9 Total Turns 225 | . . . . . . . . . . . . . . . . . . . . . . 9 216 Longest Duration 32 | . . . . . . . . . . . . . . . . . . . . . . 9 32 Robots Corrupted 4 | . . . . . . . 1 1 . . . . . . . . . . 1 . . . 1 Combat Hostiles 3 | . . . . . . . . 1 . . . . . . . . . . 1 . . . 1 Parts Fried 20 | . . . . . . 2 3 2 . . . 2 1 . . . . . 1 . . . 9 Impact Corruptions 4 | . . . . . . 4 . . . . . . . . . . . . . . . . . Robots Melted . | . . . . . . . . . . . . . . . . . . . . . . . . Combat Hostiles . | . . . . . . . . . . . . . . . . . . . . . . . . Parts Melted 9 | . 1 . 1 . . 1 . . . . . . 4 . . . . 1 1 . . . . Heat Transferred 6167 | 74 1073 370 703 148 . 666 370 124 . . . . 1199 . . . . 285 1155 . . . . Parts Sabotaged . | . . . . . . . . . . . . . . . . . . . . . . . . Parts Stolen . | . . . . . . . . . . . . . . . . . . . . . . . . Parts Stripped . | . . . . . . . . . . . . . . . . . . . . . . . . Power Chain Reactions 4 | . . . . . . . . 1 . . . . 1 . . . . . 1 . . . 1 Missiles Intercepted . | . . . . . . . . . . . . . . . . . . . . . . . . Alert | -11 -10 -10 -9 -9 -9 -8 -8 -7 -7 -7 -7 -6 -6 -6 -6 -6 -5 -5 -5 -5 -5 -5 -4 ------- Run | Scr Mat Min Mat Min Exi Min Mat Fac Low Low Zio Pro Fac Low Low Dat Pro Fac Ext Cet Arc Hub Fac Peak Influence 906 | 10 250 175 380 188 . 186 466 394 . . . . 426 . . . . 186 384 355 276 665 906 Initial 320 | . 6 . 68 148 . . 72 24 . . . . . . . . . 9 28 214 142 96 320 Average 168 | 7 76 124 230 125 . 46 225 208 . . . . 150 . . . . 51 100 321 260 314 328 Maximum Alert Level 3 | . 1 . 1 . . . 2 1 . . . . 2 . . . . . 1 1 1 2 3 Low Security (%) 64 | 100 86 100 38 100 . 100 46 42 . . . . 63 . . . . 100 82 . 9 43 39 Level 1 29 | . 13 . 61 . . . 45 57 . . . . 34 . . . . . 17 100 90 27 29 Level 2 4 | . . . . . . . 8 . . . . . 1 . . . . . . . . 28 23 Level 3 . | . . . . . . . . . . . . . . . . . . . . . . . 7 Level 4 . | . . . . . . . . . . . . . . . . . . . . . . . . Level 5 . | . . . . . . . . . . . . . . . . . . . . . . . . High Security . | . . . . . . . . . . . . . . . . . . . . . . . . Max Security . | . . . . . . . . . . . . . . . . . . . . . . . . Squads Dispatched 49 | . 1 . 1 . . . 2 13 . . . . 14 . . . . 2 3 . . 6 7 Investigation 4 | . . . . . . . . 2 . . . . 1 . . . . . . . . 1 . Extermination 17 | . . . . . . . . 5 . . . . 6 . . . . 1 . . . 1 4 Reinforcement 17 | . 1 . 1 . . . 2 3 . . . . 4 . . . . 1 3 . . 1 1 Assault 3 | . . . . . . . . . . . . . . . . . . . . . . 1 2 Garrison 8 | . . . . . . . . 3 . . . . 3 . . . . . . . . 2 . Intercept . | . . . . . . . . . . . . . . . . . . . . . . . . Construction Impeded 3 | . . . . . . . . . . . . . 1 . . . . . 1 . . . 1 Haulers Reinforced 3 | . . . . . . . . 1 . . . . . . . . . 1 . . . 1 . Stealth | -11 -10 -10 -9 -9 -9 -8 -8 -7 -7 -7 -7 -6 -6 -6 -6 -6 -5 -5 -5 -5 -5 -5 -4 --------- Run | Scr Mat Min Mat Min Exi Min Mat Fac Low Low Zio Pro Fac Low Low Dat Pro Fac Ext Cet Arc Hub Fac Distress Signals 21 | . 2 . 1 . . . 2 2 . . . . 5 . . . . . 2 1 . . 6 Communications Jammed . | . . . . . . . . . . . . . . . . . . . . . . . . Distress Signals . | . . . . . . . . . . . . . . . . . . . . . . . . Times Spotted 327 | . 17 8 13 2 . 15 29 40 3 1 . 4 51 6 . . 12 12 33 5 6 20 50 Peak Tracking Total 8 | . 3 3 5 2 . 3 5 6 3 3 . 3 6 3 . . 5 6 5 5 2 6 8 Tactical Retreats 22 | . 1 1 2 . . 4 2 4 . . . . 3 1 . . . 1 . . . . 3 Traps | -11 -10 -10 -9 -9 -9 -8 -8 -7 -7 -7 -7 -6 -6 -6 -6 -6 -5 -5 -5 -5 -5 -5 -4 ------- Run | Scr Mat Min Mat Min Exi Min Mat Fac Low Low Zio Pro Fac Low Low Dat Pro Fac Ext Cet Arc Hub Fac Traps Triggered 16 | . 1 . . . . . 1 4 . . . . 3 . . . . . 4 . . 1 2 Indirectly . | . . . . . . . . . . . . . . . . . . . . . . . . Trap Hack Attempts . | . . . . . . . . . . . . . . . . . . . . . . . . Triggered . | . . . . . . . . . . . . . . . . . . . . . . . . Disarmed . | . . . . . . . . . . . . . . . . . . . . . . . . Reprogrammed . | . . . . . . . . . . . . . . . . . . . . . . . . Reused . | . . . . . . . . . . . . . . . . . . . . . . . . Traps Extracted . | . . . . . . . . . . . . . . . . . . . . . . . . Installed . | . . . . . . . . . . . . . . . . . . . . . . . . Triggered 2 | . . . . . . . . . . 1 . . . . . . . . . . . . 1 Machines | -11 -10 -10 -9 -9 -9 -8 -8 -7 -7 -7 -7 -6 -6 -6 -6 -6 -5 -5 -5 -5 -5 -5 -4 ---------- Run | Scr Mat Min Mat Min Exi Min Mat Fac Low Low Zio Pro Fac Low Low Dat Pro Fac Ext Cet Arc Hub Fac Machines Disabled 36 | . . 1 1 . . 1 4 4 . . . . 8 . . . . 1 5 . 3 2 6 Max in Single Turn 4 | . . 1 1 . . 1 1 1 . . . . 4 . . . . 1 2 . 1 1 2 Garrison Access 4 | . . . . . . . . . . . . . 2 . . . . 1 . . . . 1 Network Hub 1 | . . . . . . . . . . . . . . . . . . . . . . 1 . Machines Sabotaged . | . . . . . . . . . . . . . . . . . . . . . . . . Garrisons Compromised . | . . . . . . . . . . . . . . . . . . . . . . . . Overloaded Fab Kills . | . . . . . . . . . . . . . . . . . . . . . . . . Fab Network Shutdowns 1 | . . . . . . . . . . . . . . . . . . . . . . . 1 Hacking | -11 -10 -10 -9 -9 -9 -8 -8 -7 -7 -7 -7 -6 -6 -6 -6 -6 -5 -5 -5 -5 -5 -5 -4 --------- Run | Scr Mat Min Mat Min Exi Min Mat Fac Low Low Zio Pro Fac Low Low Dat Pro Fac Ext Cet Arc Hub Fac Machines Accessed 72 | . 6 . 1 . 4 . 5 5 . . 1 . 16 1 3 4 . 7 5 1 . 2 11 Terminals 38 | . 6 . 1 . . . 3 4 . . . . 8 . . . . 4 5 1 . 2 4 Fabricators 5 | . . . . . . . . . . . . . 4 . . . . . . . . . 1 Repair Stations 6 | . . . . . . . 1 . . . . . 1 . . . . . . . . . 4 Recycling Units 1 | . . . . . . . . . . . . . . . . . . 1 . . . . . Scanalyzers 3 | . . . . . . . 1 . . . . . 1 . . . . . . . . . 1 Garrison Access 6 | . . . . . . . . 1 . . . . 2 . . . . 2 . . . . 1 Total Hacks 293 | . 23 . 2 . 49 . 15 11 . . 3 . 50 1 4 24 . 21 27 1 . 12 50 Successful 193 | . 12 . 1 . 49 . 8 3 . . 3 . 28 1 4 24 . 7 14 . . 4 35 Failed 98 | . 10 . 1 . . . 7 8 . . . . 22 . . . . 14 12 1 . 8 15 Catastrophic 18 | . . . . . . . 1 2 . . . . 2 . . . . 4 4 1 . 2 2 Database Lockouts 2 | . 1 . . . . . . . . . . . . . . . . . 1 . . . . Manual 101 | . 18 . 1 . . . 8 6 . . . . 11 . . . . 6 22 1 . 12 16 Terminals 150 | . 23 . 2 . . . 10 10 . . . . 25 . . . . 13 27 1 . 12 27 Fabricators 20 | . . . . . . . . . . . . . 12 . . . . . . . . . 8 Repair Stations 16 | . . . . . . . 3 . . . . . 2 . . . . . . . . . 11 Recycling Units 5 | . . . . . . . . . . . . . . . . . . 5 . . . . . Scanalyzers 13 | . . . . . . . 2 . . . . . 8 . . . . . . . . . 3 Garrison Access 8 | . . . . . . . . 1 . . . . 3 . . . . 3 . . . . 1 Terminal Hacks 130 | . 9 . . . 49 . 2 3 . . 3 . 9 1 4 24 . 3 8 . . 1 14 Record 62 | . . . . . 49 . . . . . . . . . 2 11 . . . . . . . Part Schematic 14 | . . . . . . . . . . . 3 . 2 . . 5 . . 3 . . . 1 Robot Schematic 5 | . . . . . . . . . . . . . . . . 5 . . . . . . . Robot Analysis 4 | . 3 . . . . . . . . . . . . . . . . . . . . . 1 Prototype ID Bank 6 | . 2 . . . . . . . . . . . . . . 3 . . . . . . 1 Open Door 4 | . . . . . . . . . . . . . . 1 2 . . 1 . . . . . Branch Access Points 2 | . . . . . . . . . . . . . 1 . . . . . . . . . 1 Terminal Index 1 | . . . . . . . . . . . . . . . . . . . . . . . 1 Fabricator Index 1 | . . . . . . . . . . . . . . . . . . . . . . . 1 Alert Level 3 | . . . . . . . . . . . . . . . . . . . 1 . . . 2 Unreport Threat 13 | . 1 . . . . . 2 . . . . . 3 . . . . 2 2 . . . 3 Locate Traps 9 | . 3 . . . . . . 2 . . . . 2 . . . . . 1 . . . 1 Recall Extermination 1 | . . . . . . . . . . . . . . . . . . . . . . . 1 Recall Reinforcements 1 | . . . . . . . . . . . . . . . . . . . 1 . . . . Hauler Manifests 1 | . . . . . . . . 1 . . . . . . . . . . . . . . . Registered Components 1 | . . . . . . . . . . . . . . . . . . . . . . . 1 Zone Layout 2 | . . . . . . . . . . . . . 1 . . . . . . . . 1 . Fabricator Hacks 9 | . . . . . . . . . . . . . 4 . . . . . . . . . 5 Load Schematic 4 | . . . . . . . . . . . . . 3 . . . . . . . . . 1 Build 5 | . . . . . . . . . . . . . 1 . . . . . . . . . 4 Repair Station Hacks 12 | . . . . . . . 2 . . . . . 2 . . . . . . . . . 8 Scan Component 6 | . . . . . . . 1 . . . . . 1 . . . . . . . . . 4 Repair 6 | . . . . . . . 1 . . . . . 1 . . . . . . . . . 4 Recycling Unit Hacks 1 | . . . . . . . . . . . . . . . . . . 1 . . . . . Retrieve Components 1 | . . . . . . . . . . . . . . . . . . 1 . . . . . Scanalyzer 10 | . . . . . . . 2 . . . . . 6 . . . . . . . . . 2 Insert Component 5 | . . . . . . . 1 . . . . . 3 . . . . . . . . . 1 Analyze 5 | . . . . . . . 1 . . . . . 3 . . . . . . . . . 1 Garrison Access Hacks 4 | . . . . . . . . . . . . . 2 . . . . 1 . . . . 1 Seal Access 4 | . . . . . . . . . . . . . 2 . . . . 1 . . . . 1 Unauthorized Hacks 27 | . 3 . 1 . . . 2 . . . . . 5 . . . . 2 6 . . 3 5 Terminals 25 | . 3 . 1 . . . 2 . . . . . 5 . . . . 2 6 . . 3 3 Track 7 | . 1 . . . . . . . . . . . 1 . . . . . 3 . . 1 1 Assimilate 2 | . . . . . . . . . . . . . 2 . . . . . . . . . . Botnet 16 | . 2 . 1 . . . 2 . . . . . 2 . . . . 2 3 . . 2 2 Fabricators 2 | . . . . . . . . . . . . . . . . . . . . . . . 2 Prioritize 1 | . . . . . . . . . . . . . . . . . . . . . . . 1 Siphon 1 | . . . . . . . . . . . . . . . . . . . . . . . 1 Repair Stations . | . . . . . . . . . . . . . . . . . . . . . . . . Recycling Units . | . . . . . . . . . . . . . . . . . . . . . . . . Scanalyzers . | . . . . . . . . . . . . . . . . . . . . . . . . Garrison Access . | . . . . . . . . . . . . . . . . . . . . . . . . Data Cores Recovered . | . . . . . . . . . . . . . . . . . . . . . . . . Used . | . . . . . . . . . . . . . . . . . . . . . . . . Hacking Detections 47 | . 5 . 1 . . . 5 5 . . . . 13 . . . . 5 4 1 . 2 6 Full Trace Events . | . . . . . . . . . . . . . . . . . . . . . . . . Feedback Events . | . . . . . . . . . . . . . . . . . . . . . . . . Feedback Blocked . | . . . . . . . . . . . . . . . . . . . . . . . . Robot Schematics Acquired 5 | . . . . . . . . . . . . . . . . 5 . . . . . . . Robots Built . | . . . . . . . . . . . . . . . . . . . . . . . . Matter . | . . . . . . . . . . . . . . . . . . . . . . . . Time . | . . . . . . . . . . . . . . . . . . . . . . . . Total Robot Build Rating . | . . . . . . . . . . . . . . . . . . . . . . . . Part Schematics Acquired 17 | . . . . . . . 1 . . . 3 . 4 . . 5 . . 2 . . . 2 Parts Built 4 | . . . . . . . . . . . . . 1 . . . . . . . . . 3 Matter 979 | . . . . . . . . . . . . . 102 . . . . . . . . . 877 Time 210 | . . . . . . . . . . . . . 25 . . . . . . . . . 185 Total Part Build Rating 22 | . . . . . . . . . . . . . 1 . . . . . . . . . 21 Parts Repaired 6 | . . . . . . . 1 . . . . . 1 . . . . . . . . . 4 Time 225 | . . . . . . . 38 . . . . . 61 . . . . . . . . . 126 Parts Recycled . | . . . . . . . . . . . . . . . . . . . . . . . . Recycled Matter . | . . . . . . . . . . . . . . . . . . . . . . . . Retrieved Matter . | . . . . . . . . . . . . . . . . . . . . . . . . Retrieved Components . | . . . . . . . . . . . . . . . . . . . . . . . . Parts Scanalyzed 5 | . . . . . . . 1 . . . . . 3 . . . . . . . . . 1 Part Schematics Acquired 4 | . . . . . . . 1 . . . . . 2 . . . . . . . . . 1 Parts Damaged 2 | . . . . . . . . . . . . . 1 . . . . . . . . . 1 Bothacking | -11 -10 -10 -9 -9 -9 -8 -8 -7 -7 -7 -7 -6 -6 -6 -6 -6 -5 -5 -5 -5 -5 -5 -4 ------------ Run | Scr Mat Min Mat Min Exi Min Mat Fac Low Low Zio Pro Fac Low Low Dat Pro Fac Ext Cet Arc Hub Fac Used RIF Installer . | . . . . . . . . . . . . . . . . . . . . . . . . Robots Hacked . | . . . . . . . . . . . . . . . . . . . . . . . . Non-combat . | . . . . . . . . . . . . . . . . . . . . . . . . Combat . | . . . . . . . . . . . . . . . . . . . . . . . . Robot Hacks Applied . | . . . . . . . . . . . . . . . . . . . . . . . . Relay Couplers Released 3 | . . . . . . . . . . . . . 3 . . . . . . . . . . Programmers 3 | . . . . . . . . . . . . . 3 . . . . . . . . . . Robots Rewired 7 | . . . . . . . . . . . . . . . . . . . 7 . . . . Allies Hacked 2 | . . . . . . . . . . . . . 1 . . . . . 1 . . . . Hacks Repelled 1 | . . . . . . . . . . . . . . . . . . . 1 . . . . Allies | -11 -10 -10 -9 -9 -9 -8 -8 -7 -7 -7 -7 -6 -6 -6 -6 -6 -5 -5 -5 -5 -5 -5 -4 -------- Run | Scr Mat Min Mat Min Exi Min Mat Fac Low Low Zio Pro Fac Low Low Dat Pro Fac Ext Cet Arc Hub Fac Total Allies 25 | . . . . . . . . . . . . . 1 . 2 . 1 . 21 . . . . Largest Group 11 | . . . . . . . . . . . . . 1 . 2 2 1 . 11 10 8 4 . Highest-Rated Group 426 | . . . . . . . . . . . . . 10 . 40 40 94 . 426 334 262 148 . Highest-Rated Ally 156 | . . . . . . . . . . . . . 10 . 20 20 94 . 156 37 37 37 . Total Orders . | . . . . . . . . . . . . . . . . . . . . . . . . Ally Attacks 234 | . . . . . . . . . . . . . . . . . 8 . 132 36 20 38 . Total Damage 4548 | . . . . . . . . . . . . . . . . . 350 . 2551 767 381 499 . Kills 35 | . . . . . . . . . . . . . . . . . . . 19 5 4 7 . Allies Corrupted . | . . . . . . . . . . . . . . . . . . . . . . . . Allies Melted . | . . . . . . . . . . . . . . . . . . . . . . . . Intel | -11 -10 -10 -9 -9 -9 -8 -8 -7 -7 -7 -7 -6 -6 -6 -6 -6 -5 -5 -5 -5 -5 -5 -4 ------- Run | Scr Mat Min Mat Min Exi Min Mat Fac Low Low Zio Pro Fac Low Low Dat Pro Fac Ext Cet Arc Hub Fac Robot Analysis Total 4 | . 3 . . . . . . . . . . . . . . . . . . . . . 1 Derelict Logs Recovered 12 | . . 1 . 1 . . . . 2 1 1 1 . 2 . . 3 . . . . . . Drone Launches . | . . . . . . . . . . . . . . . . . . . . . . . . Drone Recoveries . | . . . . . . . . . . . . . . . . . . . . . . . . Exploration | -11 -10 -10 -9 -9 -9 -8 -8 -7 -7 -7 -7 -6 -6 -6 -6 -6 -5 -5 -5 -5 -5 -5 -4 ------------- Run | Scr Mat Min Mat Min Exi Min Mat Fac Low Low Zio Pro Fac Low Low Dat Pro Fac Ext Cet Arc Hub Fac Turns Passed 24339 | 54 984 387 351 483 2477 1105 1279 2360 581 640 1474 446 3291 1090 691 127 1243 1304 1428 157 143 392 1852 Spaces Moved 13244 | 36 557 193 194 307 1474 465 613 1244 347 428 1047 264 1630 536 478 85 742 751 725 97 88 179 764 Core . | . . . . . . . . . . . . . . . . . . . . . . . . Treads 1106 | . . 15 . 2 . 366 . 312 . . . . 35 . . . . . 2 3 . 11 360 Legs 771 | 36 557 178 . . . . . . . . . . . . . . . . . . . . . Wheels 11367 | . . . 194 305 1474 99 613 932 347 428 1047 264 1595 536 478 85 742 751 723 94 88 168 404 Hover . | . . . . . . . . . . . . . . . . . . . . . . . . Flight . | . . . . . . . . . . . . . . . . . . . . . . . . Fastest Speed 120 | 120 120 150 120 130 120 170 130 135 140 140 140 140 130 140 140 140 140 140 140 140 140 140 140 Average Speed 150 | 120 136 152 129 130 167 209 152 152 140 140 140 140 150 140 140 140 140 140 149 141 140 148 163 Slowest Speed 280 | 120 150 180 130 200 170 280 170 220 150 140 140 150 280 150 140 140 140 150 280 200 140 180 180 Overloaded Moves . | . . . . . . . . . . . . . . . . . . . . . . . . Propulsion Burnouts . | . . . . . . . . . . . . . . . . . . . . . . . . Robots Hopped . | . . . . . . . . . . . . . . . . . . . . . . . . Cave-ins Triggered . | . . . . . . . . . . . . . . . . . . . . . . . . Exploration Rate (%) 54 | 3 84 35 26 54 93 86 52 34 67 63 85 47 43 69 63 69 72 23 78 51 76 15 22 Regions Visited 23 Branch Regions 16 Pre-discovered Areas 5 | . . . . . 1 . . . 1 . 1 . . . . 1 1 . . . . . . Known Exits Taken 17 | . . . . 1 . 1 . 1 1 1 1 1 1 1 1 1 1 1 1 1 1 1 . Unknown Exits Taken 6 | 1 1 1 1 . 1 . 1 . . . . . . . . . . . . . . . . Scrap Searched 19 | . . . . . . 1 . . 4 3 1 1 . 5 3 . 1 . . . . . . Spaces Dug 102 | . . 5 . . . . . . . 1 . 13 22 4 . . 22 25 . . . . 10 Terrain Destroyed 599 | . . 12 . . . 45 3 10 15 1 . 21 65 4 . . 145 25 8 2 3 166 74 Melee 50 | . . . . . . . . . . 1 . . 22 4 . . 1 12 . . . . 10 Projectile 74 | . . . . . . . 3 3 1 . . . 4 . . . . 3 5 2 3 8 42 AOE 475 | . . 12 . . . 45 . 7 14 . . 21 39 . . . 144 10 3 . . 158 22 Terrain Rammed . | . . . . . . . . . . . . . . . . . . . . . . . . Walls Destroyed . | . . . . . . . . . . . . . . . . . . . . . . . . Machines Disabled . | . . . . . . . . . . . . . . . . . . . . . . . . Actions | -11 -10 -10 -9 -9 -9 -8 -8 -7 -7 -7 -7 -6 -6 -6 -6 -6 -5 -5 -5 -5 -5 -5 -4 --------- Run | Scr Mat Min Mat Min Exi Min Mat Fac Low Low Zio Pro Fac Low Low Dat Pro Fac Ext Cet Arc Hub Fac Total 16368 | 42 700 253 249 379 1489 540 815 1537 421 468 1055 324 2185 831 500 92 925 924 994 110 101 253 1181 Wait 1451 | 2 74 33 10 64 . 13 41 68 29 28 1 48 245 241 16 1 146 76 72 2 5 30 206 Move 13222 | 35 556 192 193 306 1473 464 612 1243 346 427 1046 263 1629 535 477 84 741 750 724 96 87 179 764 Hop . | . . . . . . . . . . . . . . . . . . . . . . . . Pick Up 260 | 2 10 3 12 1 12 12 37 36 17 3 1 . 39 11 2 . 2 10 26 2 1 3 18 Fast Attach 59 | 1 . . 1 . 1 . 6 9 . 2 2 . 9 . 1 3 . 6 9 1 1 2 5 Attach 97 | . 3 3 3 1 . 2 10 13 1 . . . 20 2 . . 1 5 18 . . 2 13 Detach 18 | . . . . . 1 . 1 3 . . . . 7 . . . . 1 3 . . . 2 Swap 273 | . 7 4 3 2 . 9 5 23 9 2 2 6 66 10 1 1 19 18 22 2 2 6 54 Drop 197 | . 9 . 3 . 2 7 18 41 5 5 3 . 32 9 3 3 1 13 17 4 2 4 16 Fire 636 | 2 41 18 24 5 . 31 85 97 14 . . 7 98 18 . . 11 22 46 3 3 22 89 Melee 91 | . . . . . . 2 . . . 1 . . 40 5 . . 4 23 3 . . . 13 Ram 1 | . . . . . . . . . . . . . . . . . . . 1 . . . . Kick . | . . . . . . . . . . . . . . . . . . . . . . . . Crush 8 | . . . . . . . . 2 . . . . . . . . . . . . . 5 1 Escape Stasis 10 | . . . . . . . . 2 . . . . . . . . . . 8 . . . . Rewire 45 | . . . . . . . . . . . . . . . . . . . 45 . . . . Trap . | . . . . . . . . . . . . . . . . . . . . . . . . Miscellaneous . | . . . . . . . . . . . . . . . . . . . . . . . . Route ------- -11/Scrapyard -10/Materials (discovered 3 exits: *Mat x2 / [*Min]) -10/Mines -9/Materials (discovered 2 exits: Mat / [*Min]) -9/Mines (discovered 2 exits: *Exi / *Zio) -9/Exiles (discovered 2 exits: [*Min x2]) -8/Mines -8/Materials -7/Factory (discovered 2 exits: *Fac / *Low) -7/Lower Caves -7/Lower Caves (discovered 2 exits: *Fac / *Zio) -7/Zion -6/Proximity Caves -6/Factory (discovered 4 exits: *Fac x2 / *Low x2) -6/Lower Caves -6/Lower Caves (discovered 2 exits: *Fac / *Dat) -6/Data Miner -5/Proximity Caves -5/Factory (discovered 3 exits: Fac x2 / *Ext) -5/Extension (discovered 2 exits: *Fac / *Cet) -5/Cetus -5/Archives (discovered 3 exits: *Fac / *Hub x2) -5/Hub_04(d) -4/Factory (discovered 4 exits: *Res / Upp x2 / Arm) History --------- Turn | Location | Event 1 | -11/Scrapyard | Discovered new exit (range 3) 55 | -11/Scrapyard | Entered Materials 249 | -10/Materials | Discovered new exit (range 9) 309 | -10/Materials | Build established: Mutant 528 | -10/Materials | Discovered new exit (range 7) 833 | -10/Materials | Discovered new exit (range 6) 963 | -10/Materials | Central database locked down 1039 | -10/Materials | Entered Mines 1044 | -10/Mines | Core integrity fell below 50% 1250 | -10/Mines | Assembled infested the area 1344 | -10/Mines | Learned 2 Materials zone layouts 1385 | -10/Mines | Core integrity fell below 20% 1411 | -10/Mines | Discovered new exit (range 8) 1426 | -10/Mines | Entered Materials 1426 | -9/Materials | Evolved 2 slots: Utility x2 1427 | -9/Materials | Identified exit to Materials 1699 | -9/Materials | Discovered new exit (range 13) 1765 | -9/Materials | Build established: Hauler-Mutant 1777 | -9/Materials | Entered Mines 1816 | -9/Mines | YI-UF0 nonchalantly dropped a Grenade Launcher on the ground 1900 | -9/Mines | A Derelict revealed a hidden shortcut to a safe place 2075 | -9/Mines | Identified exit to Exiles 2242 | -9/Mines | Deemed a non-threat by the Exiles lab entrance 2260 | -9/Mines | Entered Exiles 2281 | -9/Exiles | Discovered new exit (range 14) 2315 | -9/Exiles | Met 8R-AWN 2338 | -9/Exiles | Met EX-HEX 2532 | -9/Exiles | Met EX-BIN 2705 | -9/Exiles | Met EX-DEC 2734 | -9/Exiles | Learned location of Zion (-7) 2805 | -9/Exiles | Visited The Gauntlet 3113 | -9/Exiles | Discovered new exit (range 10) 4737 | -9/Exiles | Entered Mines 5811 | -8/Mines | Discovered exit to Materials (range 9) 5842 | -8/Mines | Entered Materials 5842 | -8/Materials | Evolved 2 slots: Propulsion x1, Utility x1 6582 | -8/Materials | Lost 3 parts (2n1w) 6939 | -8/Materials | Repaired Imp. Light Armor Plating 7117 | -8/Materials | Discovered new exit (range 4) 7121 | -8/Materials | Entered Factory 7121 | -7/Factory | Evolved 2 slots: Propulsion x1, Utility x1 7577 | -7/Factory | Garrison activated, responded to threat 8000 | -7/Factory | Lost 3 parts (2n1u) 9275 | -7/Factory | Discovered new exit (range 10) 9302 | -7/Factory | Identified exit to Factory 9444 | -7/Factory | Discovered new exit (range 15) 9467 | -7/Factory | Identified exit to Lower Caves 9481 | -7/Factory | Entered Lower Caves 9489 | -7/Lower Caves | Learned Factory terminal intel 10046 | -7/Lower Caves | Discovered new exit (range 3) 10049 | -7/Lower Caves | Identified exit to Lower Caves 10062 | -7/Lower Caves | Entered another Lower Caves area 10241 | -7/Lower Caves | Discovered exit to Factory (range 15) 10243 | -7/Lower Caves | Encountered a Warlord checkpoint 10309 | -7/Lower Caves | Learned 4 Factory zone layouts 10685 | -7/Lower Caves | Discovered new exit (range 10) 10700 | -7/Lower Caves | Identified exit to Zion 10702 | -7/Lower Caves | Entered Zion 10753 | -7/Zion | System corruption cleaned by Quarantine Array 10808 | -7/Zion | Given A8's code to call for help 10815 | -7/Zion | Found CR-A16's Pointy Stick 10871 | -7/Zion | Discovered new exit (range 14) 11155 | -7/Zion | Learned location of Recycling (-7) 11284 | -7/Zion | Acquired unknown access codes intercepted by a Zionite 11482 | -7/Zion | Found Prototype Device 11483 | -7/Zion | Identified Phasing AFG 11588 | -7/Zion | Given the Hacking Drone Bay 12175 | -7/Zion | Identified exit to Proximity Caves 12176 | -7/Zion | Entered Proximity Caves 12622 | -6/Proximity Caves | Entered Factory 12622 | -6/Factory | Evolved 2 slots: Utility x1, Weapon x1 12624 | -6/Factory | Loaded intel: 19 terminal locations 13322 | -6/Factory | Build established: Hauler-Skirmisher 13636 | -6/Factory | Repaired Broken Lrn. Sensor Array 14156 | -6/Factory | Fabricated Hcp. Storage Unit (x1) 14161 | -6/Factory | Garrison activated, responded to threat 14760 | -6/Factory | Identified exit to Lower Caves 14778 | -6/Factory | Discovered new exit (range 15) 14847 | -6/Factory | Identified exit to Factory 15157 | -6/Factory | Spotted B-75 Beast 15232 | -6/Factory | Revealed the true nature of CR-A16's Pointy Stick 15235 | -6/Factory | Destroyed B-75 Beast 15260 | -6/Factory | Lost 6 parts (1p1n2u2w) 15851 | -6/Factory | Discovered exit to Factory (range 5) 15913 | -6/Factory | Entered Lower Caves 15914 | -6/Lower Caves | Encountered a Warlord checkpoint 16602 | -6/Lower Caves | Identified exit to Lower Caves 16994 | -6/Lower Caves | Learned 4 Factory zone layouts 17003 | -6/Lower Caves | Entered another Lower Caves area 17060 | -6/Lower Caves | Discovered exit to Factory (range 9) 17552 | -6/Lower Caves | A Commander dispatched an escort 17570 | -6/Lower Caves | Learned Factory trap positions 17570 | -6/Lower Caves | Learned Research trap positions 17640 | -6/Lower Caves | Discovered new exit (range 15) 17688 | -6/Lower Caves | Identified exit to Data Miner 17694 | -6/Lower Caves | Entered Data Miner 17694 | -6/Data Miner | Accompanied by 2 allies 17694 | -6/Data Miner | Discovered new exit (range 6) 17695 | -6/Data Miner | Commander's escort returned to base 17695 | -6/Data Miner | Commander's escort returned to base 17723 | -6/Data Miner | Met Data Miner 17746 | -6/Data Miner | Learned location of Section 7 (-2) 17746 | -6/Data Miner | Acquired the access code to Warlord's prototype stash 17770 | -6/Data Miner | Received God Mode back door access code from Data Miner 17819 | -6/Data Miner | Identified exit to Proximity Caves 17821 | -6/Data Miner | Entered Proximity Caves 18014 | -5/Proximity Caves | Build established: Hauler-Mutant 18163 | -5/Proximity Caves | Escorted by Enhanced Grunt 18279 | -5/Proximity Caves | Spotted B-75 Beast 18412 | -5/Proximity Caves | Destroyed B-75 Beast 19011 | -5/Proximity Caves | Learned location of Armory (-4) 19017 | -5/Proximity Caves | Learned 8 Factory zone layouts 19041 | -5/Proximity Caves | Discovered exit to Factory (range 3) 19052 | -5/Proximity Caves | Learned Factory stockpile data 19064 | -5/Proximity Caves | Entered Factory 19064 | -5/Factory | Evolved 2 slots: Utility x2 19065 | -5/Factory | Identified exit to Extension 19066 | -5/Factory | Identified exit to Factory 19067 | -5/Factory | Loaded intel: 91 trap records 19992 | -5/Factory | Build established: Hauler-Assassin 20368 | -5/Factory | Entered Extension 20646 | -5/Extension | Rescued A7 20664 | -5/Extension | Rescued a captive Derelict 20664 | -5/Extension | Rescued a captive Derelict 21068 | -5/Extension | Disrupted transfer network 21181 | -5/Extension | Build established: Hauler-Mutant 21246 | -5/Extension | Spotted B-75 Beast 21247 | -5/Extension | Extracted ID and sensor layout for unrecognized location from A7's data core 21272 | -5/Extension | Spotted B-75 Beast 21277 | -5/Extension | Destroyed B-75 Beast 21312 | -5/Extension | Destroyed B-75 Beast 21350 | -5/Extension | Lost 12 parts (3n5u4w) 21434 | -5/Extension | Found Prototype Protection 21435 | -5/Extension | Identified Med. Regenerative Plating 21569 | -5/Extension | System corruption reached 10% 21579 | -5/Extension | Rescued a captive Derelict 21580 | -5/Extension | Rescued a captive Derelict 21593 | -5/Extension | Central database locked down 21610 | -5/Extension | Rescued a captive Derelict 21631 | -5/Extension | Rescued a captive Derelict 21631 | -5/Extension | Rescued a captive Derelict 21668 | -5/Extension | Rescued a captive Derelict 21669 | -5/Extension | Rescued a captive Derelict 21674 | -5/Extension | Rescued a captive Derelict 21675 | -5/Extension | Rescued a captive Derelict 21703 | -5/Extension | Rescued a captive Derelict 21715 | -5/Extension | Rescued a captive Derelict 21740 | -5/Extension | Discovered exit to Factory (range 11) 21742 | -5/Extension | Disrupted transfer network 21742 | -5/Extension | Discovered new exit (range 7) 21765 | -5/Extension | Identified exit to Cetus 21796 | -5/Extension | Entered Cetus 21796 | -5/Cetus | Accompanied by 10 allies 21820 | -5/Cetus | Spotted Cetus Guard 21820 | -5/Cetus | Spotted Cetus Guard 21825 | -5/Cetus | Allies destroyed Cetus Guard 21825 | -5/Cetus | Spotted Cetus Guard 21829 | -5/Cetus | Allies destroyed Cetus Guard 21830 | -5/Cetus | Spotted Cetus Guard 21836 | -5/Cetus | Allies destroyed Cetus Guard 21849 | -5/Cetus | Destroyed Cetus Guard 21927 | -5/Cetus | Discovered new exit (range 16) 21947 | -5/Cetus | Identified exit to Archives 21953 | -5/Cetus | Entered Archives 21953 | -5/Archives | Accompanied by 8 allies 21989 | -5/Archives | Discovered new exit (range 16) 22005 | -5/Archives | Discovered exit to Factory (range 16) 22031 | -5/Archives | Discovered new exit (range 14) 22087 | -5/Archives | Identified exit to Hub_04(d) 22096 | -5/Archives | Entered Hub_04(d) 22096 | -5/Hub_04(d) | Accompanied by 4 allies 22126 | -5/Hub_04(d) | Incoming investigation squad redirected 22221 | -5/Hub_04(d) | Discovered exit to Factory (range 11) 22331 | -5/Hub_04(d) | Garrison activated, responded to threat 22396 | -5/Hub_04(d) | First assault squad dispatched 22421 | -5/Hub_04(d) | Incoming assault squad redirected 22434 | -5/Hub_04(d) | Network Hub disabled 22458 | -5/Hub_04(d) | Spotted Lightning 22458 | -5/Hub_04(d) | Spotted Lightning 22459 | -5/Hub_04(d) | Spotted Lightning 22479 | -5/Hub_04(d) | System corruption reached 30% 22488 | -5/Hub_04(d) | Entered Factory 22488 | -4/Factory | Evolved 2 slots: Utility x2 22510 | -4/Factory | Identified exit to Upper Caves 22510 | -4/Factory | Identified exit to Armory 22593 | -4/Factory | Discovered new exit (range 5) 22598 | -4/Factory | Identified exit to Research 22661 | -4/Factory | Repaired Arm. Huge Wheel 22713 | -4/Factory | Repaired Centrium Heavy Treads 22895 | -4/Factory | Fabricated Imp. KE Penetrator (x1) 22952 | -4/Factory | Repaired Broken Imp. KE Penetrator 23037 | -4/Factory | Fabricated Imp. KE Penetrator? 23167 | -4/Factory | Fabricated Imp. KE Penetrator? 23606 | -4/Factory | Repaired Arm. Huge Wheel 23793 | -4/Factory | Local fabrication network quarantined 24238 | -4/Factory | First assault squad dispatched 24297 | -4/Factory | Incoming assault squad redirected 24340 | -4/Factory | Self-destructed Last Messages --------------- 24328_ C-30 ARC bursts open, deploying its payload. 24328_ G-73 Enforcer unfolds itself. 24328_ G-67 Veteran unfolds itself. 24328_ M-36 Artificer unfolds itself. 24330_ Slug penetrates G-67 Veteran. 24330_ System corrupted: KE Penetrator targeting data glitched. 24330_ Slug penetrates G-67 Veteran. 24331_ Adv. Signal Interpreter destroyed. 24332_ P-70 Sage resets G-67 Veteran, system corruption cleaned. 24334_ System corrupted: KE Penetrator jammed. 24334_ System corrupted: Imp. KE Penetrator targeting data glitched. 24334_ Slug penetrates G-67 Veteran. 24336_ KE Penetrator destroyed. 24338_ Slug penetrates G-67 Veteran. 24338_ System corrupted: KE Penetrator targeting data glitched. 24338_ Slug penetrates Wall. 24338_ Imp. Medium Armor Plating destroyed. 24338_ Chain reaction triggered in Lgt. Antimatter Reactor. 24338_ G-67 Veteran destroyed. 24338_ Med. Regenerative Plating destroyed. Map ----- +----------------------------------------------------+ | ???????????????????????????????????????????????# | | ???????????????????????????????????????????????# " | | ???????????????????????????????????????????????# " | | ???????????????????????????????????????????????# " | | ???????????????????????????????????????????????# | | ???????????????????????????????????????????????#! | | ???????????????????????????????????????????????# | | ???????????????????????????????????????????????# | | ???????????????????????????????????????????????##+ | | ??????????????????????#?????????????????????????# | | ???????????????????####[????????????????????????# | | ???????????????????+ %*######################### | | ??????????????????????##![=%%= *[![= | | ???????????????????????#!|%*[=#################### | | ???????????????????????#=%%*!!#???? ????????????? | | ???????????????????????# =*[![#??""" ????????????? | | ?????????????????####### ==# """" ????????????? | | ?????????????? [+ """" ????????????? | | ????????????????######## # """" ????????????? | | ???????????????????????###### #?? #???????????? | | ????????????????????????????# #????###???????????? | | ???????????????????????????## #??????????????????? | | ??????????????????????##### # #??????????????????? | | ?????????????????????##;#; ;;=###????????????????? | | ?????????????????##### ;;;g[%;######???????????? | | ?????????? [; ; @% %= g p ?????? | | ?????????????????##### ==%;mg[p#######???????????? | | ?????????????????????#* ;;;;;;;;#????????????????? | | ?????????????????????##=; # g #???????????????? | | ??????????????????????# ### """" #???????????????? | | ??????????????????????# ??# """" #???????????????? | | ??????????????????????# ??# """" #???????????????? | | ??????????????????????#???# """" #???????????????? | | ??????????????????????????# +???????????????? | | ??????????????????????????####+??#???????????????? | | ?????????????????????????????????????????????????? | | ?????????????????????????????????????????????????? | | ?????????????????????????????????????????????????? | | ?????????????????????????????????????????????????? | | ?????????????????????????????????????????????????? | | ?????????????????????????????????????????????????? | | ?????????????????????????????????????????????????? | | ?????????????????????????????????????????????????? | | ?????????????????????????????????????????????????? | | ?????????????????????????????????????????????????? | | ?????????????????????????????????????????????????? | | ?????????????????????????????????????????????????? | | ?????????????????????????????????????????????????? | | ?????????????????????????????????????????????????? | | ?????????????????????????????????????????????????? | +----------------------------------------------------+ Best States ------------- Heat Dissipation 48 Coolant Potential 65 Energy Generation 25 Energy Capacity 350 Matter Stores 300 Matter Capacity 300 Sight Range 16 Robot Scan Range 22 Terrain Scan Range 20 Terrain Scan Density 10 Additional Mass Support 16 Armor Coverage 900 Resistance: KI 30 Resistance: TH 25 Weapon Cycling 20 Evasion (%) 40 Targeting Accuracy 8 Recoil Reduction 4 Matter Filtering 50 Kinecelleration 30 Offensive Hacking 36 Defensive Hacking 26 Item Schematics ----------------- Hcp. Storage Unit | -8/Materials | Scanalyzed Riot Gun | -7/Zion | Free Battle Rifle | -7/Zion | Free Slug Cannon | -7/Zion | Free Hyp. Coil Gun | -6/Factory | Hacked Lrn. Sensor Array | -6/Factory | Scanalyzed Arm. Wheel | -6/Factory | Scanalyzed Smartbomb Launcher | -6/Factory | Hacked Combat Drone Bay | -6/Data Miner | Free Lgt. Regenerative Plating | -6/Data Miner | Free Exp. Flexi-carbon Leg | -6/Data Miner | Free Triangulator | -6/Data Miner | Free Kinetic Spear | -6/Data Miner | Free Adv. Hacking Suite | -5/Extension | Hacked Hvy. Treads | -5/Extension | Hacked Imp. KE Penetrator | -4/Factory | Scanalyzed Biometal Heavy Treads | -4/Factory | Hacked Robot Schematics ------------------ S-27 Virus | -6/Data Miner | Free G-50 Soldier | -6/Data Miner | Free L-41 Fighter | -6/Data Miner | Free X-72 Disruptor | -6/Data Miner | Free I-36 Angel | -6/Data Miner | Free Fabricated ------------ Hcp. Storage Unit | x1 | -6/Factory Imp. KE Penetrator | x1 | -4/Factory Imp. KE Penetrator | x1 | -4/Factory Imp. KE Penetrator | x1 | -4/Factory Alien Tech Used ----------------- None Achievements -------------- None Challenges ------------ None Game ------ Seed SlugDamperWand Manual? 0 Play Time 05:39:51 Cumulative 952.2 hours Start 2020.10.30 @ 06:39:09 End 2020.11.02 @ 06:47:56 Sessions 23 Manual Loads 0 Difficulty Rogue Special Mode Halloween2020/ForbiddenLore Game No. 270 Rogue 270 Adventurer 0 Explorer 0 Win Type - Total 32 Types 21/3/5/3/0/0/0/0/0 Lore% 75 Gallery% 86 Achievement% 72 Wizard Run 0 Options --------- ASCII 0 Keyboard 1 Movement Numpad Keybinds 0 Fullscreen 1 Font 24/Smallcaps Map View 76x50 Tactical HUD 1 Map Filters NONE Filters NONE Steam 1 RUN: d059e032-38d3-45e9-95cc-ee516b05ffc8